[Event "TUR-ch Youth U14 2019"]
[Site "Belek"]
[Date "2019.01.26"]
[Round "11"]
[White "Kara, Gulce Nehir"]
[Black "Ozturk, Nil"]
[Result "0-1"]
[ECO "C45"]
[WhiteElo "1702"]
[BlackElo "1319"]
[Annotator "NA"]
[PlyCount "42"]
[EventDate "2019.01.20"]
[EventType "swiss"]
[EventCountry "TUR"]
[SourceTitle "playchess.com"]
[Source "ChessBase"]
[SourceQuality "1"]
[TimeControl "5400+30"]

1. e4 {[%emt 0:01:30]} e5 {[%emt 0:00:30]} 2. Nf3 {[%emt 0:00:30]} Nc6 {[%emt 0:00:30]} 3. d4 {[%emt 0:00:30]} exd4 {[%emt 0:00:00]} 4. Nxd4 {[%emt 0:00:00]} g6 {[%emt 0:00:00]} 5. g3 {[%emt 0:02:00]} Bg7 {[%emt 0:00:30]} 6. Nxc6 {[%emt 0:07:30]} bxc6 {[%emt 0:00:30]} 7. Bg2 {[%emt 0:00:30]} Ne7 {[%emt 0:12:30]} 8. O-O {[%emt 0:00:30]} O-O {[%emt 0:00:30]} 9. Re1 {[%emt 0:05:30]} d5 {[%emt 0:08:30]} 10. c3 {[%emt 0:07:30]} Be6 {[%emt 0:03:30]} 11. Qa4 {[%emt 0:09:30]} h6 {[%emt 0:07:30]} 12. Be3 {[%emt 0:06:30]} a6 {[%emt 0:11:30]} 13. Nd2 {[%emt 0:04:30]} Re8 {[%emt 0:04:30]} 14. Bc5 {[%emt 0:04:30]} Qd7 {[%emt 0:04:30]} 15. Rad1 {[%emt 0:03:30]} Bf6 {[%emt 0:04:30]} 16. Nb3 {[%emt 0:07:30]} Nc8 {[%emt 0:10:30]} 17. exd5 {[%emt 0:01:30]} cxd5 {[%emt 0:01:30]} 18. Qxd7 {[%emt 0:00:30]} Bxd7 {[%emt 0:00:00]} 19. Bxd5 {[%emt 0:00:30]} Rxe1+ {[%emt 0:01:00]} 20. Rxe1 {[%emt 0:00:30]} Rb8 {[%emt 0:00:30]} 21. Ba7 {[%emt 0:00:30]} Nxa7 {[%emt 0:00:30]} 0-1

[Event "TUR-ch Youth U14 2019"]
[Site "Belek"]
[Date "2019.01.26"]
[Round "11"]
[White "Ozcan, Ilker"]
[Black "Danaci, Ege"]
[Result "0-1"]
[ECO "A10"]
[WhiteElo "1672"]
[BlackElo "2143"]
[Annotator "NA"]
[PlyCount "66"]
[EventDate "2019.01.20"]
[EventType "swiss"]
[EventCountry "TUR"]
[SourceTitle "playchess.com"]
[Source "ChessBase"]
[SourceQuality "1"]
[TimeControl "5400+30"]

{[%evp 8,61,53,39,59,19,65,61,75,68,60,47,55,14,31,32767,22,-14,21,32767,18,19,31,27,37,32767,32767,32767,32767,32767,32767,32767,32767,-37,32767,32767,32767,32767,32767,32767,32767,32767,32767,32767,32767,32767,32767,32767,32767,-7,-4,32767,-182,-190,-198,-185]} 1. e4 {[%emt 0:00:30]} b6 {[%emt 0:00:30]} 2. c4 {[%emt 0:03:30]} Bb7 {[%emt 0:03:30]} 3. Nc3 {[%emt 0:00:30]} e5 {[%emt 0:05:30]} 4. Nf3 {[%emt 0:02:00]} d6 {[%emt 0:04:30]} 5. d4 {[%emt 0:01:30]} Nd7 {[%emt 0:00:30]} 6. Qa4 {[%emt 0:05:30]} c6 {[%emt 0:06:30]} 7. Be2 {[%emt 0:12:30]} Ngf6 {[%emt 0:00:00]} 8. Qc2 {[%emt 0:00:30]} Be7 {[%emt 0:04:00]} 9. O-O {[%emt 0:01:30]} O-O {[%emt 0:00:00]} 10. b3 {[%emt 0:01:30]} Re8 {[%emt 0:04:00]} 11. Re1 {[%emt 0:11:30]} Bf8 {[%emt 0:05:30]} 12. Bf1 {[%emt 0:03:30]} ({Better is} 12. d5 $14) 12... Qc7 {[%emt 0:00:30]} 13. Bb2 {[%emt 0:02:30]} a6 {[%emt 0:16:30]} 14. Rac1 {[%emt 0:03:30]} b5 {[%emt 0:04:30]} 15. cxb5 {[%emt 0:20:30]} cxb5 {[%emt 0:00:30]} 16. Qd2 {[%emt 0:01:30]} Qa5 {[%emt 0:01:30]} 17. a3 {[%emt 0:13:54]} b4 {[%emt 0:05:30]} 18. axb4 {[%emt 0:00:51]} Qxb4 {[%emt 0:00:30]} 19. Bc4 {[%emt 0:00:03]} Nb6 {[%emt 0:03:30]} 20. Nb1 {[%emt 0:04:31]} Qxd2 {[%emt 0:00:30]} 21. Nbxd2 {[%emt 0:00:16]} Nxc4 {[%emt 0:01:30]} 22. Rxc4 {[%emt 0:00:24]} Nxe4 {[%emt 0:07:30]} 23. Nxe4 {[%emt 0:04:27]} Bxe4 {[%emt 0:00:30]} 24. dxe5 {[%emt 0:01:36]} Bd5 {[%emt 0:00:00]} 25. Rc3 {[%emt 0:00:56]} dxe5 {[%emt 0:00:00]} 26. Rxe5 {[%emt 0:00:37]} Rxe5 {[%emt 0:02:30]} 27. Nxe5 {[%emt 0:00:39]} Rb8 {[%emt 0:00:30]} 28. Nd7 {[%emt 0:02:43]} Re8 {[%emt 0:00:00]} 29. Kf1 {[%emt 0:00:56]} Bb4 {[%emt 0:00:00]} 30. Rc1 {[%emt 0:00:56]} Bxb3 {[%emt 0:00:30]} 31. g3 $19 {[%emt 0:00:08]} Bd2 {[%emt 0:01:30]} 32. Rc5 {[%emt 0:00:30]} Be6 {[%emt 0:00:30]} 33. Rc2 {[%emt 0:00:49]} Bh3+ {[%emt 0:00:30]} 0-1

[Event "TUR-ch Youth U14 2019"]
[Site "Belek"]
[Date "2019.01.26"]
[Round "11"]
[White "Tokat, Nehir"]
[Black "Ince, Safiye Oyku"]
[Result "1/2-1/2"]
[ECO "E17"]
[WhiteElo "1665"]
[BlackElo "1870"]
[Annotator "NA"]
[PlyCount "26"]
[EventDate "2019.01.20"]
[EventType "swiss"]
[EventCountry "TUR"]
[SourceTitle "playchess.com"]
[Source "ChessBase"]
[SourceQuality "1"]
[TimeControl "5400+30"]

{[%evp 8,25,20,18,29,31,22,34,38,28,77,64,104,35,61,4,12,2,87,-26]} 1. Nf3 {[%emt 0:00:30]} c5 {[%emt 0:00:30]} 2. c4 {[%emt 0:00:00]} e6 {[%emt 0:00:30]} 3. g3 {[%emt 0:00:00]} d5 {[%emt 0:00:30]} 4. cxd5 {[%emt 0:00:30]} exd5 {[%emt 0:00:30]} 5. d4 {[%emt 0:00:30]} Nf6 {[%emt 0:00:30]} 6. Bg2 {[%emt 0:00:30]} Be7 {[%emt 0:00:30]} 7. O-O {[%emt 0:00:00]} O-O {[%emt 0:00:30] LiveBook: 684 Games} 8. Nc3 {[%emt 0:00:00]} b6 {[%emt 0:02:30]} 9. dxc5 {[%emt 0:03:30]} bxc5 {[%emt 0:01:30]} 10. Bg5 {[%emt 0:02:30]} ({Better is} 10. Ne5 $16 Bb7 11. Qb3) 10... Bb7 {[%emt 0:04:30]} 11. Qc2 {[%emt 0:10:30]} ({White should try} 11. Qb3 $14 Qc7 12. Bxf6 Bxf6 13. Nxd5 Bxd5 14. Qxd5) 11... Nbd7 {[%emt 0:07:30]} 12. Rfd1 {[%emt 0:04:30]} Rc8 {[%emt 0:08:30]} (12... h6 $11 {keeps the balance.} 13. Bxf6 Nxf6) 13. Rac1 $11 {[%emt 0:05:30]} (13. Nh4 $16) 13... d4 {[%emt 0:14:30]} 1/2-1/2

[Event "TUR-ch Youth U14 2019"]
[Site "Belek"]
[Date "2019.01.26"]
[Round "11"]
[White "Eraslan, Yagmur"]
[Black "Hafizoglu, Bengi"]
[Result "1/2-1/2"]
[ECO "B47"]
[WhiteElo "1567"]
[BlackElo "1711"]
[Annotator "NA"]
[PlyCount "40"]
[EventDate "2019.01.20"]
[EventType "swiss"]
[EventCountry "TUR"]
[SourceTitle "playchess.com"]
[Source "ChessBase"]
[SourceQuality "1"]
[TimeControl "5400+30"]

1. e4 {[%emt 0:00:30]} c5 {[%emt 0:00:30]} 2. Nf3 {[%emt 0:00:00]} e6 {[%emt 0:00:00]} 3. d4 {[%emt 0:00:00]} cxd4 {[%emt 0:00:00]} 4. Nxd4 {[%emt 0:00:00]} Nc6 {[%emt 0:00:30]} 5. Nc3 {[%emt 0:00:00]} Qc7 {[%emt 0:00:00]} 6. g3 {[%emt 0:00:30]} a6 {[%emt 0:01:00]} 7. Bg2 {[%emt 0:00:30]} Nf6 {[%emt 0:00:00]} 8. O-O {[%emt 0:01:30]} Nxd4 {[%emt 0:00:00]} 9. Qxd4 {[%emt 0:00:30]} Bc5 {[%emt 0:00:30]} 10. Qd3 {[%emt 0:00:30]} Ng4 {[%emt 0:01:30]} 11. Bh3 {[%emt 0:13:30]} Ne5 {[%emt 0:16:30]} 12. Qe2 {[%emt 0:01:30]} Ng6 {[%emt 0:05:30]} 13. Be3 {[%emt 0:07:30]} h5 {[%emt 0:06:30]} 14. Na4 {[%emt 0:14:30]} Bxe3 {[%emt 0:05:30]} 15. Qxe3 {[%emt 0:01:30]} b5 {[%emt 0:14:30]} 16. Nb6 {[%emt 0:02:30]} Rb8 {[%emt 0:01:30]} 17. Nxc8 {[%emt 0:00:30]} Rxc8 {[%emt 0:00:00]} 18. f4 {[%emt 0:09:30]} Qc5 {[%emt 0:02:00]} 19. Qxc5 {[%emt 0:01:30]} Rxc5 {[%emt 0:00:30]} 20. c3 {[%emt 0:03:30]} Ke7 {[%emt 0:07:30]} 1/2-1/2

[Event "TUR-ch Youth U14 2019"]
[Site "Belek"]
[Date "2019.01.26"]
[Round "11"]
[White "Bese, Irem"]
[Black "Tikvesli, Ceylin"]
[Result "1/2-1/2"]
[ECO "A45"]
[WhiteElo "1534"]
[BlackElo "1677"]
[Annotator "NA"]
[PlyCount "44"]
[EventDate "2019.01.20"]
[EventType "swiss"]
[EventCountry "TUR"]
[SourceTitle "playchess.com"]
[Source "ChessBase"]
[SourceQuality "1"]
[TimeControl "5400+30"]

1. d4 {[%emt 0:00:30]} Nf6 {[%emt 0:00:30]} 2. e3 {[%emt 0:00:30]} d6 {[%emt 0:00:00]} 3. f4 {[%emt 0:00:00]} g6 {[%emt 0:00:00]} 4. Bd3 {[%emt 0:00:00]} Bg7 {[%emt 0:00:30]} 5. Nf3 {[%emt 0:00:30]} Nbd7 {[%emt 0:00:00]} 6. c3 {[%emt 0:01:30]} O-O {[%emt 0:00:00]} 7. O-O {[%emt 0:00:00]} e5 {[%emt 0:01:30]} 8. e4 {[%emt 0:01:00]} c6 {[%emt 0:07:30]} 9. Qb3 {[%emt 0:08:30]} Qb6 {[%emt 0:04:30]} 10. Qxb6 {[%emt 0:00:30]} axb6 {[%emt 0:00:30]} 11. Na3 {[%emt 0:03:30]} b5 {[%emt 0:05:30]} 12. Bd2 {[%emt 0:11:30]} exd4 {[%emt 0:16:30]} 13. cxd4 {[%emt 0:05:30]} Re8 {[%emt 0:06:30]} 14. Rfe1 {[%emt 0:04:30]} Nb6 {[%emt 0:10:30]} 15. Bc3 {[%emt 0:19:30]} Na4 {[%emt 0:06:30]} 16. Nb1 {[%emt 0:04:30]} Be6 {[%emt 0:04:30]} 17. b3 {[%emt 0:03:30]} Nxc3 {[%emt 0:01:30]} 18. Nxc3 {[%emt 0:00:00]} b4 {[%emt 0:01:30]} 19. Ne2 {[%emt 0:04:00]} Ra3 {[%emt 0:04:30]} 20. Nc1 {[%emt 0:02:30]} Rea8 {[%emt 0:05:30]} 21. Rb1 {[%emt 0:04:30]} Ne8 {[%emt 0:04:01]} 22. h3 {[%emt 0:03:30]} Nc7 {[%emt 0:07:20]} 1/2-1/2